lending/lending_fUSD_20240710
["ID","MTS","AMOUNT","RATE_DAILY","PERIOD"]
[331607530,1720578748835,-500.0,0.00014103,2]
[331607531,1720578748844,-1143.34,0.00014103,2]
[331607532,1720578748853,-500.25,0.00014103,2]
[331607533,1720578748863,-1170.38,0.00014103,2]
[331607534,1720578748873,-2893.92,0.00014103,2]
[331607535,1720578748884,-2703.57,0.00014103,2]
[331607536,1720578748894,-1410.52,0.00014103,2]
[331607537,1720578748903,-571.63937133,0.00014103,2]
[331607538,1720578748912,-500.0,0.00014103,2]
[331607539,1720578748921,-500.0,0.00014103,2]
[331607540,1720578748931,-710.8,0.00014103,2]
[331607541,1720578748940,-500.0,0.00014103,2]
[331607542,1720578748950,-980.01,0.00014103,2]
[331607543,1720578748960,-924.07,0.00014103,2]
[331607544,1720578748969,-1580.34,0.00014103,2]
[331607545,1720578748979,-500.0,0.00014103,2]
[331607546,1720578748988,-500.0,0.00014103,2]
[331607547,1720578748998,-2432.31,0.00014103,2]
[331607548,1720578749007,-1464.91,0.00014103,2]
[331607549,1720578749018,-500.0,0.00014103,2]
[331607550,1720578749028,-500.0,0.00014103,2]
[331607551,1720578749039,-500.0,0.00014103,2]
[331607552,1720578749050,-500.0,0.00014103,2]
[331607553,1720578749061,-500.0,0.00014103,2]
[331607554,1720578749070,-2887.55,0.00014103,2]
[331607555,1720578749079,-897.43,0.00014103,2]
[331607556,1720578749087,-1140.5,0.00014103,2]
[331607557,1720578749097,-500.0,0.00014103,2]
[331607558,1720578749106,-1197.44,0.00014103,2]
[331607559,1720578749115,-573.03,0.00014103,2]
[331607560,1720578749124,-2491.04,0.00014103,2]
[331607561,1720578749134,-824.06,0.00014103,2]
[331607562,1720578749144,-3605.84,0.00014103,2]
[331607563,1720578749153,-502.79,0.00014103,2]
[331607564,1720578749162,-500.0,0.00014103,2]
[331607565,1720578749172,-500.0,0.00014103,2]
[331607566,1720578749181,-500.0,0.00014103,2]
[331607567,1720578749190,-500.0,0.00014103,2]
[331607568,1720578749199,-622.46,0.00014103,2]
[331607569,1720578749207,-1513.67,0.00014103,2]
[331607570,1720578749217,-739.12,0.00014103,2]
[331607571,1720578749226,-272.67127521,0.00014103,2]
[331607572,1720578749235,-901.58,0.00014103,2]
[331607573,1720578749244,-695.45,0.00014103,2]
[331607574,1720578749253,-500.0,0.00014103,2]
[331607575,1720578749262,-500.0,0.00014103,2]
[331607576,1720578749271,-500.0,0.00014103,2]
[331607577,1720578749280,-500.0,0.00014103,2]
[331607578,1720578749289,-3305.33,0.00014103,2]
[331607579,1720578749652,-658.31,0.00014103,2]
[331607580,1720578749662,-500.0,0.00014103,2]
[331607581,1720578749671,-695.74,0.00014103,2]
[331607582,1720578749681,-3723.61,0.00014103,2]
[331607583,1720578749691,-631.74,0.00014103,2]
[331607584,1720578749700,-500.0,0.00014103,2]
[331607585,1720578749710,-500.0,0.00014103,2]
[331607586,1720578749720,-1842.59,0.00014103,2]
[331607587,1720578749729,-500.0,0.00014103,2]
[331607588,1720578749739,-550.23,0.00014103,2]
[331607589,1720578749751,-500.0,0.00014103,2]
[331607590,1720578749761,-500.0,0.00014103,2]
[331607591,1720578749770,-1071.25,0.00014103,2]
[331607592,1720578749780,-1388.45,0.00014103,2]
[331607593,1720578749790,-500.0,0.00014103,2]
[331607594,1720578749802,-500.0,0.00014103,2]
[331607595,1720578749811,-500.0,0.00014103,2]
[331607596,1720578749822,-3126.15,0.00014103,2]
[331607597,1720578749833,-963.4,0.00014103,2]
[331607598,1720578749843,-254.02196992,0.00014103,2]
[331607599,1720578749854,-2473.23,0.00014103,2]
[331607600,1720578749864,-500.0,0.00014103,2]
[331607601,1720578749874,-500.0,0.00014103,2]
[331607602,1720578749886,-978.08,0.00014103,2]
[331607603,1720578749898,-2795.73,0.00014103,2]
[331607604,1720578749907,-5532.13,0.00014103,2]
[331607605,1720578749918,-2866.95,0.00014103,2]
[331607606,1720578749927,-500.0,0.00014103,2]
[331607607,1720578749936,-1148.88,0.00014103,2]
[331607608,1720578749947,-809.3,0.00014103,2]
[331607609,1720578749956,-1515.65,0.00014103,2]
[331607610,1720578749965,-168.62827062,0.00014103,2]
[331607611,1720578749975,-1912.64,0.00014103,2]
[331607612,1720578749986,-3926.91,0.00014103,2]
[331607613,1720578749995,-505.8,0.00014103,2]
[331607614,1720578750006,-627.06,0.00014103,2]
[331607615,1720578750017,-1067.87,0.00014103,2]
[331607616,1720578750027,-839.35,0.00014103,2]
[331607617,1720578750038,-3821.49,0.00014103,2]
[331607618,1720578750047,-544.95,0.00014103,2]
[331607619,1720578750056,-1862.31,0.00014103,2]
[331607620,1720578750065,-1604.72,0.00014103,2]
[331607621,1720578750074,-500.0,0.00014103,2]
[331607622,1720578750083,-4888.15,0.00014103,2]
[331607623,1720578750093,-500.0,0.00014103,2]
[331607624,1720578750102,-500.0,0.00014103,2]
[331607625,1720578750111,-1623.67,0.00014103,2]
[331607626,1720578750120,-1273.12,0.00014103,2]
[331607627,1720578750131,-500.0,0.00014103,2]
[331607628,1720578750140,-661.72,0.00014103,2]
[331607629,1720578750150,-500.0,0.00014103,2]
[331607630,1720578750159,-500.0,0.00014103,2]
[331607631,1720578750169,-924.69,0.00014103,2]
[331607632,1720578750178,-597.61,0.00014103,2]
[331607633,1720578750187,-500.0,0.00014103,2]
[331607634,1720578750196,-1501.83,0.00014103,2]
[331607635,1720578750205,-1858.17,0.00014103,2]
[331607636,1720578750215,-500.0,0.00014103,2]
[331607637,1720578750224,-545.13,0.00014103,2]
[331607638,1720578750233,-500.0,0.00014103,2]
[331607639,1720578750242,-500.0,0.00014103,2]
[331607640,1720578750252,-500.0,0.00014103,2]
[331607641,1720578750261,-1401.76,0.00014103,2]
[331607642,1720578750271,-500.0,0.00014103,2]
[331607643,1720578750281,-283.84393976,0.00014103,2]
[331607644,1720578750291,-739.11,0.00014103,2]
[331607645,1720578750300,-1061.57,0.00014103,2]
[331607646,1720578750309,-741.03,0.00014103,2]
[331607647,1720578750319,-537.65,0.00014103,2]
[331607648,1720578750330,-684.66,0.00014103,2]
[331607649,1720578750340,-1265.1,0.00014103,2]
[331607650,1720578750352,-500.0,0.00014103,2]
[331607651,1720578750362,-664.94,0.00014103,2]
[331607652,1720578750371,-1170.81,0.00014103,2]
[331607653,1720578750382,-500.0,0.00014103,2]
[331607654,1720578750391,-2691.6,0.00014103,2]
[331607655,1720578750400,-500.0,0.00014103,2]
[331607656,1720578750411,-500.0,0.00014103,2]
[331607657,1720578750422,-575.14,0.00014103,2]
[331607658,1720578750432,-1204.35,0.00014103,2]
[331607659,1720578750441,-500.0,0.00014103,2]
[331607660,1720578750450,-787.9,0.00014103,2]
[331607661,1720578750459,-500.0,0.00014103,2]
[331607662,1720578750468,-924.35,0.00014103,2]
[331607663,1720578750478,-500.0,0.00014103,2]
[331607664,1720578750488,-500.0,0.00014103,2]
[331607665,1720578750498,-1245.72,0.00014103,2]
[331607666,1720578750507,-650.77,0.00014103,2]
[331607667,1720578750518,-3616.61,0.00014103,2]
[331607668,1720578750530,-1304.79,0.00014103,2]
[331607669,1720578750539,-500.0,0.00014103,2]
[331607670,1720578750550,-841.57,0.00014103,2]
[331607671,1720578750560,-500.0,0.00014103,2]
[331607672,1720578750570,-5575.91,0.00014103,2]
[331607673,1720578750581,-1042.86,0.00014103,2]
[331607674,1720578750591,-500.0,0.00014103,2]
[331607675,1720578750600,-500.0,0.00014103,2]
[331607676,1720578750609,-500.0,0.00014103,2]
[331607677,1720578750619,-500.0,0.00014103,2]
[331607678,1720578750628,-1071.56,0.00014103,2]
[331607679,1720578750637,-1264.05,0.00014103,2]
[331607680,1720578750647,-2114.46,0.00014103,2]
[331607681,1720578750657,-500.0,0.00014103,2]
[331607682,1720578750667,-500.0,0.00014103,2]
[331607683,1720578750676,-500.0,0.00014103,2]
[331607684,1720578750687,-538.86,0.00014103,2]
[331607685,1720578750697,-500.0,0.00014103,2]
[331607686,1720578750706,-500.0,0.00014103,2]
[331607687,1720578750716,-1099.76,0.00014103,2]
[331607688,1720578750725,-3471.64,0.00014103,2]
[331607689,1720578750734,-614.93,0.00014103,2]
[331607690,1720578750743,-500.0,0.00014103,2]
[331607691,1720578750753,-632.86,0.00014103,2]
[331607692,1720578750762,-500.0,0.00014103,2]
[331607693,1720578750771,-500.0,0.00014103,2]
[331607694,1720578750780,-1814.83,0.00014103,2]
[331607695,1720578750790,-659.18,0.00014103,2]
[331607696,1720578750800,-1436.02,0.00014103,2]
[331607697,1720578750809,-500.0,0.00014103,2]
[331607698,1720578750818,-1085.35,0.00014103,2]
[331607699,1720578750827,-4481.36,0.00014103,2]
[331607700,1720578750837,-500.0,0.00014103,2]
[331607701,1720578750846,-1900.38,0.00014103,2]
[331607702,1720578750855,-2722.72,0.00014103,2]
[331607703,1720578750864,-500.0,0.00014103,2]
[331607704,1720578750875,-500.0,0.00014103,2]
[331607705,1720578750888,-1043.36,0.00014103,2]
[331607706,1720578750897,-927.02,0.00014103,2]
[331607707,1720578750907,-612.29,0.00014103,2]
[331607708,1720578750917,-500.0,0.00014103,2]
[331607709,1720578750926,-500.0,0.00014103,2]
[331607710,1720578750936,-500.0,0.00014103,2]
[331607711,1720578750945,-3154.74,0.00014103,2]
[331607712,1720578750955,-500.0,0.00014103,2]
[331607713,1720578750964,-3281.01,0.00014103,2]
[331607714,1720578750974,-500.0,0.00014103,2]
[331607715,1720578750983,-500.0,0.00014103,2]
[331607716,1720578750993,-500.0,0.00014103,2]
[331607717,1720578751002,-630.9,0.00014103,2]
[331607718,1720578751012,-1356.64,0.00014103,2]
[331607719,1720578751022,-666.44,0.00014103,2]
[331607720,1720578751031,-1501.48,0.00014103,2]
[331607721,1720578751041,-1807.88,0.00014103,2]
[331607722,1720578751051,-500.0,0.00014103,2]
[331607723,1720578751060,-500.0,0.00014103,2]
[331607724,1720578751069,-500.0,0.00014103,2]
[331607725,1720578751079,-500.0,0.00014103,2]
[331607726,1720578751088,-500.0,0.00014103,2]
[331607727,1720578751098,-1143.16,0.00014103,2]
[331607728,1720578751107,-500.0,0.00014103,2]
[331607729,1720578751117,-500.0,0.00014103,2]
[331607730,1720578751126,-500.0,0.00014103,2]
[331607731,1720578751137,-725.99,0.00014103,2]
[331607732,1720578751147,-1071.26,0.00014103,2]
[331607733,1720578751156,-568.75,0.00014103,2]
[331607734,1720578751166,-980.17,0.00014103,2]
[331607735,1720578751175,-1193.03,0.00014103,2]
[331607736,1720578751185,-1433.96,0.00014103,2]
[331607737,1720578751194,-500.0,0.00014103,2]
[331607738,1720578751204,-500.0,0.00014103,2]
[331607739,1720578751214,-500.0,0.00014103,2]
[331607740,1720578751223,-1363.71,0.00014103,2]
[331607741,1720578751234,-500.0,0.00014103,2]
[331607742,1720578751244,-968.12,0.00014103,2]
[331607743,1720578751254,-3207.44,0.00014103,2]
[331607744,1720578751264,-500.0,0.00014103,2]
[331607745,1720578751273,-1828.72,0.00014103,2]
[331607746,1720578751283,-717.01,0.00014103,2]
[331607747,1720578751293,-500.0,0.00014103,2]
[331607748,1720578751302,-1258.63,0.00014103,2]
[331607749,1720578751312,-1127.54,0.00014103,2]
[331607750,1720578751326,-745.98,0.00014103,2]
[331607751,1720578751335,-500.0,0.00014103,2]
[331607752,1720578751346,-500.0,0.00014103,2]
[331607753,1720578751355,-500.0,0.00014103,2]
[331607754,1720578751365,-1290.64,0.00014103,2]
[331607755,1720578751375,-571.53,0.00014103,2]
[331607756,1720578751386,-500.0,0.00014103,2]
[331607757,1720578751396,-1292.58,0.00014103,2]
[331607758,1720578751406,-1042.23,0.00014103,2]
[331607759,1720578751416,-500.0,0.00014103,2]
[331607760,1720578751425,-1174.42,0.00014103,2]
[331607761,1720578751435,-1580.24,0.00014103,2]
[331607762,1720578751445,-5426.52,0.00014103,2]
[331607763,1720578751454,-1054.05,0.00014103,2]
[331607764,1720578751464,-1811.79,0.00014103,2]
[331607765,1720578751474,-500.0,0.00014103,2]
[331607766,1720578751483,-500.0,0.00014103,2]
[331607767,1720578751494,-1125.78,0.00014103,2]
[331607768,1720578751504,-500.0,0.00014103,2]
[331607769,1720578751514,-500.0,0.00014103,2]
[331607770,1720578751523,-500.0,0.00014103,2]
[331607771,1720578751534,-802.8,0.00014103,2]
[331607772,1720578751543,-500.0,0.00014103,2]
[331607773,1720578751552,-500.0,0.00014103,2]
[331607774,1720578751562,-2890.79,0.00014103,2]
[331607775,1720578751572,-1403.19,0.00014103,2]
[331607776,1720578751581,-971.81,0.00014103,2]
[331607777,1720578751591,-535.47,0.00014103,2]
[331607778,1720578751600,-518.73,0.00014103,2]
[331607779,1720578751610,-4305.73,0.00014103,2]
[331607780,1720578751620,-943.48,0.00014103,2]
[331607781,1720578751631,-589.11,0.00014103,2]
[331607782,1720578751640,-500.0,0.00014103,2]
[331607783,1720578751650,-2193.03,0.00014103,2]
[331607784,1720578751659,-3242.01,0.00014103,2]
[331607785,1720578751669,-1793.51,0.00014103,2]
[331607786,1720578751678,-500.0,0.00014103,2]
[331607787,1720578751688,-754.1,0.00014103,2]
[331607788,1720578751698,-2661.75,0.00014103,2]
[331607789,1720578751707,-2319.09,0.00014103,2]
[331607790,1720578751717,-500.0,0.00014103,2]
[331607791,1720578751727,-567.35,0.00014103,2]
[331607792,1720578751737,-689.55,0.00014103,2]
[331607793,1720578751747,-2557.46,0.00014103,2]
[331607794,1720578751757,-500.0,0.00014103,2]
[331607795,1720578751766,-713.54,0.00014103,2]
[331607796,1720578751776,-658.27,0.00014103,2]
[331607797,1720578751786,-502.13,0.00014103,2]
[331607798,1720578751795,-500.0,0.00014103,2]
[331607799,1720578751804,-1271.47,0.00014103,2]
[331607800,1720578751814,-640.0,0.00014103,2]
[331607801,1720578751824,-1083.72,0.00014103,2]
[331607802,1720578751834,-3740.98,0.00014103,2]
[331607803,1720578751844,-500.0,0.00014103,2]
[331607804,1720578751854,-1162.5,0.00014103,2]
[331607805,1720578751866,-1248.4,0.00014103,2]
[331607806,1720578751879,-518.4,0.00014103,2]
[331607807,1720578751890,-427.79073831,0.00014103,2]
[331607808,1720578751899,-500.0,0.00014103,2]
[331607809,1720578751909,-500.0,0.00014103,2]
[331607810,1720578751919,-1181.57,0.00014103,2]
[331607811,1720578751929,-1309.73,0.00014103,2]
[331607812,1720578751939,-836.41,0.00014103,2]
[331607813,1720578751949,-1305.44,0.00014103,2]
[331607814,1720578751959,-500.0,0.00014103,2]
[331607815,1720578751969,-500.0,0.00014103,2]
[331607816,1720578751978,-765.33,0.00014103,2]
[331607817,1720578751988,-500.0,0.00014103,2]
[331607818,1720578751998,-3127.47,0.00014103,2]
[331607819,1720578752008,-1479.51,0.00014103,2]
[331607820,1720578752017,-500.0,0.00014103,2]
[331607821,1720578752027,-644.76,0.00014103,2]
[331607822,1720578752036,-794.79,0.00014103,2]
[331607823,1720578752056,-867.35,0.00014103,2]
[331607824,1720578752066,-1986.59,0.00014103,2]
[331607825,1720578752075,-500.0,0.00014103,2]
[331607826,1720578752085,-500.0,0.00014103,2]
[331607827,1720578752094,-500.0,0.00014103,2]
[331607828,1720578752103,-2317.96,0.00014103,2]
[331607829,1720578752113,-2337.29,0.00014103,2]
[331607830,1720578752122,-1041.58,0.00014103,2]
[331607831,1720578752134,-500.0,0.00014103,2]
[331607832,1720578752144,-500.0,0.00014103,2]
[331607833,1720578752153,-968.21,0.00014103,2]
[331607834,1720578752164,-1035.93,0.00014103,2]
[331607835,1720578752174,-2586.94,0.00014103,2]
[331607836,1720578752183,-500.0,0.00014103,2]
[331607837,1720578752192,-1553.64,0.00014103,2]
[331607838,1720578752202,-2080.31,0.00014103,2]
[331607839,1720578752212,-502.59,0.00014103,2]
[331607840,1720578752222,-500.0,0.00014103,2]
[331607841,1720578752232,-737.45,0.00014103,2]
[331607842,1720578752241,-500.0,0.00014103,2]
[331607843,1720578752251,-2112.92,0.00014103,2]
[331607844,1720578752261,-1923.02,0.00014103,2]
[331607845,1720578752271,-4380.69,0.00014103,2]
[331607846,1720578752281,-892.74,0.00014103,2]
[331607847,1720578752291,-500.0,0.00014103,2]
[331607848,1720578752300,-448.0747407,0.00014103,2]
[331607849,1720578752310,-500.0,0.00014103,2]
[331607850,1720578752319,-500.0,0.00014103,2]
[331607851,1720578752329,-1529.72,0.00014103,2]
[331607852,1720578752339,-500.0,0.00014103,2]
[331607853,1720578752348,-855.14,0.00014103,2]
[331607854,1720578752357,-500.0,0.00014103,2]
[331607855,1720578752367,-3718.91,0.00014103,2]
[331607856,1720578752375,-740.92,0.00014103,2]
[331607857,1720578752387,-500.0,0.00014103,2]
[331607858,1720578752396,-500.0,0.00014103,2]
[331607859,1720578752406,-3238.09,0.00014103,2]
[331607860,1720578752415,-609.73,0.00014103,2]
[331607861,1720578752424,-1002.12,0.00014103,2]
[331607862,1720578752434,-651.55,0.00014103,2]
[331607863,1720578752443,-500.0,0.00014103,2]
[331607864,1720578752454,-500.0,0.00014103,2]
[331607865,1720578752464,-980.41,0.00014103,2]
[331607866,1720578752473,-500.0,0.00014103,2]
[331607867,1720578752482,-3990.01,0.00014103,2]
[331607868,1720578752492,-1839.51,0.00014103,2]
[331607869,1720578752501,-500.0,0.00014103,2]
[331607870,1720578752511,-4957.69,0.00014103,2]
[331607871,1720578752520,-1974.57,0.00014103,2]
[331607872,1720578752530,-500.0,0.00014103,2]
[331607873,1720578752539,-1500.49,0.00014103,2]
[331607874,1720578752549,-952.07,0.00014103,2]
[331607875,1720578752562,-500.0,0.00014103,2]
[331607876,1720578752571,-500.0,0.00014103,2]
[331607877,1720578752581,-699.28,0.00014103,2]
[331607878,1720578752591,-500.0,0.00014103,2]
[331607879,1720578752600,-658.29,0.00014103,2]
[331607880,1720578752610,-500.0,0.00014103,2]
[331607881,1720578752619,-500.0,0.00014103,2]
[331607882,1720578752629,-709.87,0.00014103,2]
[331607883,1720578752638,-1755.69,0.00014103,2]
[331607884,1720578752648,-500.0,0.00014103,2]
[331607885,1720578752657,-1145.48,0.00014103,2]
[331607886,1720578752666,-944.07,0.00014103,2]
[331607887,1720578752675,-500.0,0.00014103,2]
[331607888,1720578752684,-2293.08,0.00014103,2]
[331607889,1720578752695,-537.89470917,0.00014103,2]
[331607890,1720578752705,-635.26,0.00014103,2]
[331607891,1720578752716,-780.96,0.00014103,2]
[331607892,1720578752727,-500.0,0.00014103,2]
[331607893,1720578752737,-974.57,0.00014103,2]
[331607894,1720578752746,-879.8,0.00014103,2]
[331607895,1720578752757,-500.0,0.00014103,2]
[331607896,1720578752766,-5378.78,0.00014103,2]
[331607897,1720578752777,-5568.96,0.00014103,2]
[331607898,1720578752786,-500.0,0.00014103,2]
[331607899,1720578752796,-973.02,0.00014103,2]
[331607900,1720578752805,-500.0,0.00014103,2]
[331607901,1720578752815,-500.0,0.00014103,2]
[331607902,1720578752825,-2089.34,0.00014103,2]
[331607903,1720578752835,-1639.39,0.00014103,2]
[331607904,1720578752844,-500.0,0.00014103,2]
[331607905,1720578752855,-2173.64,0.00014103,2]
[331607906,1720578752864,-500.0,0.00014103,2]
[331607907,1720578752874,-1556.62,0.00014103,2]
[331607908,1720578752886,-500.0,0.00014103,2]
[331607909,1720578752898,-1651.76,0.00014103,2]
[331607910,1720578752908,-500.0,0.00014103,2]
[331607911,1720578752917,-3794.84,0.00014103,2]
[331607912,1720578752927,-500.0,0.00014103,2]
[331607913,1720578752937,-3056.06,0.00014103,2]
[331607914,1720578752946,-3164.82,0.00014103,2]
[331607915,1720578752956,-1116.11,0.00014103,2]
[331607916,1720578752965,-701.8,0.00014103,2]
[331607917,1720578752975,-1628.14,0.00014103,2]
[331607918,1720578752985,-2832.39,0.00014103,2]
[331607919,1720578752994,-1057.08,0.00014103,2]
[331607920,1720578753003,-500.0,0.00014103,2]
[331607921,1720578753012,-5259.94,0.00014103,2]
[331607922,1720578753022,-1394.34,0.00014103,2]
[331607923,1720578753031,-500.0,0.00014103,2]
[331607924,1720578753041,-500.0,0.00014103,2]
[331607925,1720578753050,-3723.23,0.00014103,2]
[331607926,1720578753059,-1428.64,0.00014103,2]
[331607927,1720578753068,-500.0,0.00014103,2]
[331607928,1720578753078,-500.0,0.00014103,2]
[331607929,1720578753087,-500.0,0.00014103,2]
[331607930,1720578753096,-500.0,0.00014103,2]
[331607931,1720578753105,-1637.49,0.00014103,2]
[331607932,1720578753115,-500.0,0.00014103,2]
[331607933,1720578753124,-1289.83,0.00014103,2]
[331607934,1720578753140,-4028.33,0.00014103,2]
[331607935,1720578753159,-500.0,0.00014103,2]
[331607936,1720578753173,-2993.84,0.00014103,2]
[331607937,1720578753189,-500.0,0.00014103,2]
[331607938,1720578753205,-500.0,0.00014103,2]
[331607939,1720578753223,-2832.69,0.00014103,2]
[331607940,1720578753240,-1071.85,0.00014103,2]
[331607941,1720578753257,-500.0,0.00014103,2]
[331607942,1720578753274,-1916.52,0.00014103,2]
[331607943,1720578753290,-3236.91,0.00014103,2]
[331607944,1720578753306,-1308.49,0.00014103,2]
[331607945,1720578753321,-500.0,0.00014103,2]
[331607946,1720578753333,-2241.04,0.00014103,2]
[331607947,1720578753350,-500.0,0.00014103,2]
[331607948,1720578753366,-666.78,0.00014103,2]
[331607949,1720578753382,-500.0,0.00014103,2]
[331607950,1720578753399,-2619.25,0.00014103,2]
[331607951,1720578753412,-1165.49,0.00014103,2]
[331607952,1720578753424,-607.01,0.00014103,2]
[331607953,1720578753438,-2550.62,0.00014103,2]
[331607954,1720578753454,-1719.47,0.00014103,2]
[331607955,1720578753466,-796.74,0.00014103,2]
[331607956,1720578753479,-1535.65,0.00014103,2]
[331607957,1720578753496,-500.0,0.00014103,2]
[331607958,1720578753508,-635.62,0.00014103,2]
[331607959,1720578753528,-1593.91,0.00014103,2]
[331607960,1720578753543,-500.0,0.00014103,2]
[331607961,1720578753557,-500.0,0.00014103,2]
[331607962,1720578753571,-3309.42,0.00014103,2]
[331607963,1720578753585,-500.0,0.00014103,2]
[331607964,1720578753601,-851.82,0.00014103,2]
[331607965,1720578753618,-1134.24,0.00014103,2]
[331607966,1720578753635,-2211.54,0.00014103,2]
[331607967,1720578753650,-1623.1,0.00014103,2]
[331607968,1720578753665,-823.14,0.00014103,2]
[331607969,1720578753682,-2181.32,0.00014103,2]
[331607970,1720578753696,-1829.83,0.00014103,2]
[331607971,1720578753712,-3205.17,0.00014103,2]
[331607972,1720578753726,-751.82,0.00014103,2]
[331607973,1720578753740,-558.55,0.00014103,2]
[331607974,1720578753753,-1952.3,0.00014103,2]
[331607975,1720578753766,-2070.44,0.00014103,2]
[331607976,1720578753780,-500.0,0.00014103,2]
[331607977,1720578753793,-3572.72,0.00014103,2]
[331607978,1720578753806,-500.0,0.00014103,2]
[331607979,1720578753820,-500.0,0.00014103,2]
[331607980,1720578753834,-1170.3,0.00014103,2]
[331607981,1720578753848,-952.39,0.00014103,2]
[331607982,1720578753863,-500.0,0.00014103,2]
[331607983,1720578753878,-500.0,0.00014103,2]
[331607984,1720578753893,-4228.87,0.00014103,2]
[331607985,1720578753909,-916.36,0.00014103,2]
[331607986,1720578753923,-639.17,0.00014103,2]
[331607987,1720578753937,-500.0,0.00014103,2]
[331607988,1720578753950,-2319.44,0.00014103,2]
[331607989,1720578753964,-500.0,0.00014103,2]
[331607990,1720578753977,-2105.71,0.00014103,2]
[331607991,1720578753990,-500.0,0.00014103,2]
[331607992,1720578754003,-747.15,0.00014103,2]
[331607993,1720578754017,-1839.06,0.00014103,2]
[331607994,1720578754030,-5219.39,0.00014103,2]
[331607995,1720578754043,-931.18,0.00014103,2]
[331607996,1720578754057,-553.43,0.00014103,2]
[331607997,1720578754070,-623.84,0.00014103,2]
[331607998,1720578754085,-488.06515,0.00014103,2]
[331607999,1720578754098,-2886.6,0.00014103,2]
[331608000,1720578754111,-3728.58,0.00014103,2]
[331608001,1720578754125,-796.99,0.00014103,2]
[331608002,1720578754138,-539.23,0.00014103,2]
[331608003,1720578754154,-4577.06,0.00014103,2]
[331608004,1720578754167,-1872.17,0.00014103,2]
[331608005,1720578754179,-5476.03,0.00014103,2]
[331608006,1720578754191,-500.0,0.00014103,2]
[331608007,1720578754203,-868.45,0.00014103,2]
[331608008,1720578754216,-1648.09,0.00014103,2]
[331608009,1720578754228,-1219.17,0.00014103,2]
[331608010,1720578754241,-500.0,0.00014103,2]
[331608011,1720578754254,-655.24,0.00014103,2]
[331608012,1720578754267,-5498.87,0.00014103,2]
[331608013,1720578754279,-500.0,0.00014103,2]
[331608014,1720578754292,-1260.98,0.00014103,2]
[331608015,1720578754305,-500.0,0.00014103,2]
[331608016,1720578754318,-578.76,0.00014103,2]
[331608017,1720578754332,-500.0,0.00014103,2]
[331608018,1720578754347,-777.75,0.00014103,2]
[331608019,1720578754360,-1323.41,0.00014103,2]
[331608020,1720578754373,-1207.34,0.00014103,2]
[331608021,1720578754386,-500.0,0.00014103,2]
[331608022,1720578754399,-1414.19,0.00014103,2]
[331608023,1720578754411,-599.32,0.00014103,2]
[331608024,1720578754426,-500.0,0.00014103,2]
[331608025,1720578754438,-2329.47,0.00014103,2]
[331608026,1720578754449,-500.0,0.00014103,2]
[331608027,1720578754462,-500.0,0.00014103,2]
[331608028,1720578754474,-3968.07,0.00014103,2]
[331608029,1720578754486,-677.11,0.00014103,2]